bitfinex/quotes_ETHUSD_20250813
["timestamp","ask_amount","ask_price","bid_price","bid_amount"]
[1755098050120,2.804,4639.4,4639.3,3.0]
[1755098050403,2.804,4639.4,4639.3,6.538]
[1755098050773,2.804,4639.4,4639.3,3.0]
[1755098050984,2.804,4639.4,4639.3,6.538]
[1755098051381,0.0204,4639.4,4639.3,7.1918]
[1755098051574,2.804,4639.4,4639.3,12.3568]
[1755098051901,0.0204,4639.4,4639.3,12.3568]
[1755098052273,2.804,4639.4,4639.3,11.703]
[1755098053322,2.804,4639.4,4639.3,5.165]
[1755098053476,2.804,4639.4,4639.3,8.7028]
[1755098054781,2.804,4639.4,4639.3,5.1658]
[1755098054976,2.804,4639.4,4639.3,8.7028]
[1755098056086,2.804,4639.4,4639.3,5.1658]
[1755098056290,2.804,4639.4,4639.3,8.7018]
[1755098056291,3.0846,4639.4,4639.3,8.7018]
[1755098058274,2.8032,4639.4,4639.3,8.7018]
[1755098059780,2.8032,4639.4,4639.3,5.2738]
[1755098060214,2.8032,4639.4,4639.3,8.8078]
[1755098060415,2.8032,4639.4,4639.3,5.2738]
[1755098060719,2.8032,4639.4,4639.3,8.8078]
[1755098061446,3.08372,4639.4,4639.3,8.6998]
[1755098061987,2.8032,4639.4,4639.3,8.6998]
[1755098062508,2.8032,4639.4,4639.3,5.1658]
[1755098062708,2.8032,4639.4,4639.3,8.6998]
[1755098063027,2.8032,4639.4,4639.3,8.6988]
[1755098064324,2.8032,4639.4,4639.3,5.1658]
[1755098064647,2.8032,4639.4,4639.3,8.6988]
[1755098065127,0.0196,4639.4,4639.3,8.6988]
[1755098065331,2.8032,4639.4,4639.3,8.6988]
[1755098065696,3.09452,4639.4,4639.3,5.1658]
[1755098066020,3.20252,4639.4,4639.3,8.6978]
[1755098067383,3.20252,4639.4,4639.3,5.1658]
[1755098067589,3.20252,4639.4,4639.3,8.697]
[1755098067809,6.20252,4639.4,4639.3,5.1658]
[1755098069322,6.20252,4639.4,4639.3,8.6968]
[1755098070589,6.20252,4639.4,4639.3,5.1658]
[1755098070786,6.20252,4639.4,4638.7,5.166]
[1755098070787,0.6363365,4639.3,4638.7,5.166]
[1755098071028,3.0,4639.1,4638.8,3.53]
[1755098071228,0.108,4638.9,4638.8,3.53]
[1755098071408,2.9631,4638.9,4638.7,5.166]
[1755098071726,2.4935,4638.9,4638.7,5.166]
[1755098071931,0.646293,4638.8,4638.4,0.001]
[1755098072133,1.115893,4638.8,4638.5,3.53]
[1755098072316,18.88057683,4638.6,4638.5,3.53]
[1755098072522,21.08713251,4638.6,4638.5,3.53]
[1755098072848,3.0,4638.5,4638.4,0.001]
[1755098073001,5.8551,4638.5,4638.4,3.531]
[1755098073205,6.42484762,4638.5,4638.4,3.531]
[1755098073914,3.42484762,4638.5,4638.4,0.001]
[1755098074239,6.42484762,4638.5,4638.4,0.001]
[1755098074726,6.42484762,4638.5,4638.4,3.53]
[1755098074939,3.0,4638.4,4638.3,5.166]
[1755098075142,5.06165568,4638.4,4638.3,8.695]
[1755098075438,21.62767683,4638.4,4638.3,8.695]
[1755098076207,5.8551,4638.4,4638.3,8.695]
[1755098076951,5.8551,4638.4,4638.3,5.166]
[1755098077098,5.8551,4638.4,4638.3,8.695]
[1755098077301,21.62767683,4638.4,4638.3,8.695]
[1755098077605,21.62767683,4638.4,4638.3,8.694]
[1755098077606,23.80124451,4638.4,4638.3,8.694]
[1755098078000,23.80124451,4638.4,4638.3,5.166]
[1755098078320,23.80124451,4638.4,4638.3,8.6958]
[1755098081199,23.90924451,4638.4,4638.3,8.6958]
[1755098082014,23.90924451,4638.4,4638.3,5.1678]
[1755098082224,23.90924451,4638.4,4638.3,8.6948]
[1755098083138,23.90924451,4638.4,4638.3,5.1678]
[1755098083350,23.90924451,4638.4,4638.3,8.6948]
[1755098083838,23.90924451,4638.4,4638.3,8.6938]
[1755098084837,23.90924451,4638.4,4638.3,5.1678]
[1755098085029,23.90924451,4638.4,4638.3,8.6938]
[1755098087340,23.90924451,4638.4,4638.3,8.6928]
[1755098087808,8.13666768,4638.4,4638.3,8.6938]
[1755098088208,8.13586768,4638.4,4638.3,8.6938]
[1755098089139,5.28156768,4638.4,4638.3,8.6938]
[1755098089919,5.75116768,4638.4,4638.3,8.6938]
[1755098090240,7.66706768,4638.4,4638.3,8.6938]
[1755098090424,5.9631,4638.4,4638.3,8.6938]
[1755098092647,3.108,4638.4,4638.3,8.6938]
[1755098093017,0.108,4638.4,4638.3,9.0203]
[1755098093219,0.108,4638.4,4638.3,10.57913]
[1755098093650,0.002,4639.3,4638.3,10.57913]
[1755098093946,0.646184,4638.7,4638.4,3.522]
[1755098094148,0.108,4638.9,4638.4,3.5228]
[1755098094443,0.108,4638.9,4638.5,3.522]
[1755098094748,0.108,4638.9,4638.5,4.916913]
[1755098095458,0.02894371,4639.3,4638.6,3.521]
[1755098095750,0.02894371,4639.3,4638.7,3.521]
[1755098095958,0.02894371,4639.3,4638.4,0.0008]
[1755098095959,0.108,4638.8,4638.4,0.0008]
[1755098096122,0.108,4638.5,4638.4,0.0008]
[1755098096320,0.108,4638.5,4638.4,3.5218]
[1755098099604,0.108,4638.5,4638.4,3.5198]
[1755098099895,0.108,4638.5,4638.4,0.0008]
[1755098100041,0.108,4638.5,4637.9,0.001]
[1755098100042,3.0,4638.4,4637.9,0.001]
[1755098100241,3.0,4638.4,4638.0,3.519]
[1755098100242,1.22310077,4638.3,4638.0,3.519]
[1755098100439,0.108,4638.0,4637.5,5.169]
[1755098100675,18.79952868,4637.9,4637.5,5.169]
[1755098100847,21.49887683,4637.9,4637.5,5.169]
[1755098101045,23.73460543,4637.9,4637.5,5.169]
[1755098101374,3.0,4637.8,4637.5,5.169]
[1755098101577,0.22536286,4637.7,4637.5,5.169]
[1755098101788,3.0,4637.6,4636.1,0.021]
[1755098101950,18.88057683,4637.0,4636.8,5.168]
[1755098102150,18.83207089,4636.9,4636.8,5.168]
[1755098102455,21.60687683,4636.9,4636.4,5.168]
[1755098102648,3.0,4636.4,4636.2,5.168]
[1755098102981,3.0,4636.4,4635.6,0.001]
[1755098102982,3.0,4636.2,4635.6,0.001]
[1755098103151,3.0,4636.2,4633.1,0.6768]
[1755098103152,3.0,4635.6,4634.2,5.168]
[1755098103344,18.88057683,4634.8,4634.2,5.168]
[1755098103544,18.88057683,4634.8,4634.7,3.518]
[1755098103876,22.40650698,4634.8,4634.7,3.518]
[1755098104175,22.25373783,4634.8,4634.7,3.518]
[1755098104349,23.1567993,4634.8,4634.7,3.518]
[1755098105091,4.65792247,4634.8,4634.7,3.518]
[1755098105257,3.754861,4634.8,4634.7,0.001]
[1755098105585,3.78183088,4634.8,4634.7,0.001]
[1755098105882,6.50813088,4634.8,4634.7,3.518]
[1755098106084,8.32510543,4634.8,4634.7,0.001]
[1755098106289,8.32510543,4634.8,4634.7,3.518]
[1755098106654,8.32510543,4634.8,4634.2,5.168]
[1755098106655,5.4890421,4634.8,4634.2,5.168]
[1755098106851,3.0,4634.2,4633.3,0.001]
[1755098107082,18.88057683,4633.5,4633.3,0.001]
[1755098107595,21.60687683,4633.5,4633.3,0.001]
[1755098107960,21.60687683,4633.5,4633.4,2.813]
[1755098107961,21.60507989,4633.5,4633.4,2.813]
[1755098108297,22.28217047,4633.5,4633.4,0.0018]
[1755098108456,22.20937047,4633.5,4633.4,0.0018]
[1755098108653,22.40549579,4633.5,4633.4,1.0188]
[1755098108897,22.40549579,4633.5,4630.1,0.128]
[1755098108898,4.82394443,4633.4,4632.5,1.983]
[1755098109189,0.108,4632.2,4630.1,0.02]
[1755098109353,18.77257683,4631.2,4630.1,0.02]
[1755098109556,21.86214512,4631.2,4630.1,0.02]
[1755098109981,6.08956829,4631.2,4630.1,0.02]
[1755098110184,6.39643485,4631.2,4631.1,1.442]
[1755098110382,6.25130433,4631.2,4631.1,2.642]
[1755098110589,3.26973604,4631.2,4631.1,0.02]
[1755098110785,3.0,4631.1,4630.1,0.02]
[1755098110996,15.20772504,4630.2,4630.1,0.02]
[1755098111186,15.20772504,4629.2,4629.1,0.02]
[1755098111596,18.04202504,4629.2,4629.1,0.02]
[1755098111966,18.04202504,4629.2,4628.1,0.02]
[1755098111969,3.0,4629.1,4628.1,0.02]
[1755098112156,15.31572504,4628.2,4628.1,0.02]
[1755098112367,3.0,4628.1,4627.6,5.171]
[1755098112584,0.0270095,4628.0,4627.2,3.516]
[1755098112787,15.31572504,4627.3,4627.2,3.516]
[1755098112987,3.108,4627.3,4627.2,3.516]
[1755098113192,0.108,4627.3,4627.2,3.8699]
[1755098113393,0.108,4627.3,4627.2,4.9792]
[1755098113777,0.027006,4628.6,4627.2,4.9792]
[1755098113972,0.108,4628.1,4627.3,1.0013]
[1755098114288,0.647584,4629.5,4627.6,0.108]
[1755098114600,2.2728,4630.3,4627.7,1.11223]
[1755098114601,0.108,4628.5,4627.7,1.11223]
[1755098114908,0.108,4627.7,4626.9,0.3665]
[1755098115208,0.108,4627.2,4626.9,0.2585]
[1755098115512,0.108,4627.2,4627.1,3.54]
[1755098115667,0.108,4627.2,4627.1,4.5413]
[1755098115873,0.108,4627.2,4627.1,0.023]
[1755098116092,0.108,4627.2,4627.1,3.54]
[1755098116293,6.1451,4627.2,4627.1,0.023]
[1755098116494,3.108,4627.2,4627.1,0.023]
[1755098116694,3.108,4627.2,4627.1,3.54]
[1755098117569,3.108,4627.2,4627.1,0.023]
[1755098117773,3.108,4627.2,4627.1,3.54]
[1755098118114,3.1072,4627.2,4627.1,3.54]
[1755098118323,3.1072,4627.2,4625.3,2.16200689]
[1755098118324,3.41792,4627.2,4623.6,0.003]
[1755098118484,12.20772504,4624.7,4623.6,0.003]
[1755098118806,0.02702936,4624.6,4623.7,3.27]
[1755098119505,2.7263,4625.8,4623.7,3.27]
[1755098119506,0.02702293,4625.7,4623.7,3.27]
[1755098119682,15.20935733,4625.6,4623.8,3.517]
[1755098119888,0.0270241,4625.5,4623.6,0.003]
[1755098120204,0.4535,4625.4,4623.9,5.177]
[1755098120392,0.02702527,4625.3,4623.9,5.177]
[1755098120795,0.02702527,4625.3,4623.9,5.4355]
[1755098120981,0.02702527,4625.3,4623.9,6.07255]
[1755098121376,3.0,4625.5,4623.9,6.33105]
[1755098121706,0.02702468,4625.4,4624.0,0.2585]
[1755098121909,0.02702468,4625.4,4624.0,2.009905]
[1755098122085,12.20772504,4626.3,4624.1,0.2585]
[1755098122406,0.648019,4626.1,4624.2,0.7666]
[1755098122611,12.20772504,4626.1,4624.3,0.2585]
[1755098122774,1.24779368,4626.0,4624.3,0.2585]
[1755098122978,3.0,4625.3,4624.4,3.518]
[1755098123179,0.02702585,4625.2,4624.4,3.518]
[1755098123482,0.02702585,4625.2,4624.5,3.518]
[1755098123680,1.2248108,4625.1,4624.5,3.518]
[1755098123978,0.48052702,4625.0,4624.6,3.519]
[1755098124189,3.0,4624.9,4623.9,5.177]
[1755098124390,0.33774819,4624.8,4623.9,5.177]
[1755098124591,0.02702819,4624.8,4624.0,3.518]
[1755098124818,0.02702819,4624.8,4623.9,5.177]
[1755098125112,0.02702819,4624.8,4624.0,3.518]
[1755098125420,0.02702819,4624.8,4624.1,3.518]
[1755098125421,0.4535,4624.7,4624.1,3.518]
[1755098125721,0.02541007,4624.6,4624.1,3.518]
[1755098125923,0.57517101,4624.5,4623.9,5.177]
[1755098126092,0.57517101,4624.5,4624.0,3.518]
[1755098126415,0.02541124,4624.4,4624.1,3.518]
[1755098126709,2.29821124,4624.4,4624.1,3.518]
[1755098126924,0.648019,4626.0,4624.2,3.518]
[1755098126925,2.2728,4625.0,4624.2,3.518]
[1755098127079,0.02702761,4624.9,4623.5,0.2595]
[1755098127279,0.0270241,4625.5,4623.7,8.699]
[1755098127586,0.0270241,4625.5,4623.8,1.0251]
[1755098127808,0.648019,4626.0,4623.8,1.0251]
[1755098127993,0.02702176,4625.9,4623.9,1.0251]
[1755098128198,0.02702176,4625.9,4624.0,1.0251]
[1755098128589,0.02702176,4625.9,4624.1,3.519]
[1755098128782,3.0,4626.2,4624.1,3.519]
[1755098129001,0.0270206,4626.1,4624.1,3.7775]
[1755098129186,0.0270206,4626.1,4624.2,0.2585]
[1755098129499,0.108,4625.1,4624.3,0.45441]
[1755098129686,0.108,4625.1,4624.4,4.5431]
[1755098129912,0.108,4625.1,4624.5,0.2585]
[1755098130918,0.108,4625.3,4624.6,3.626]
[1755098131080,0.108,4625.3,4624.6,0.23]
[1755098131280,0.02702585,4625.2,4624.7,3.518]
[1755098131616,0.108,4624.8,4624.7,3.518]
[1755098132386,0.108,4624.8,4624.6,0.23]
[1755098132893,5.76452878,4624.7,4624.6,0.23]
[1755098133092,3.0,4624.6,4623.9,5.182]
[1755098133307,3.0,4624.6,4620.1,0.02]
[1755098133308,0.108,4624.0,4622.6,5.182]
[1755098133508,3.0,4623.8,4622.7,3.518]
[1755098133697,3.0,4623.6,4622.7,3.518]
[1755098133896,0.108,4622.8,4622.7,3.518]
[1755098134097,5.8455,4622.8,4622.7,3.518]
[1755098134420,2.8455,4622.8,4622.6,5.182]
[1755098134618,3.34909047,4622.7,4622.6,5.182]
[1755098134849,3.54326338,4622.7,4622.6,8.7]
[1755098135008,3.34909047,4622.7,4622.6,8.7]
[1755098135322,3.65160051,4622.7,4622.6,3.518]
[1755098135511,3.65160051,4622.7,4621.5,5.182]
[1755098135711,0.61159047,4622.7,4622.6,3.518]
[1755098136033,3.0,4622.6,4621.5,5.182]
[1755098136320,0.108,4622.2,4621.5,5.182]
[1755098136689,5.87254339,4622.2,4621.5,5.182]
[1755098136886,6.03986542,4622.2,4621.5,5.182]
[1755098137122,3.30236542,4622.2,4621.5,5.182]
[1755098137423,3.30236542,4622.2,4622.1,3.539]
[1755098137624,0.30236542,4622.2,4622.1,3.539]
[1755098137923,0.108,4622.2,4622.1,3.539]
[1755098138326,0.108,4622.2,4622.1,3.5398]
[1755098138627,0.108,4622.2,4622.1,0.0208]
[1755098138850,0.108,4622.2,4622.1,3.5398]
[1755098139494,0.4411,4624.0,4622.1,3.8219]
[1755098139694,0.4411,4624.0,4622.2,0.38219]
[1755098139695,0.108,4622.5,4622.2,0.38219]
[1755098139930,0.35624014,4624.0,4622.3,0.2821]
[1755098140097,0.02703345,4623.9,4622.3,0.2821]
[1755098140441,0.02703345,4623.9,4622.4,3.519]
[1755098140442,0.19548288,4623.8,4622.4,3.519]
[1755098140603,0.02703462,4623.7,4622.4,3.519]
[1755098140793,3.0,4623.1,4622.1,0.0208]
[1755098140996,3.0,4622.9,4622.2,3.519]
[1755098141226,0.66385977,4622.8,4622.2,3.519]
[1755098141554,0.46813988,4622.8,4622.2,3.519]
[1755098141700,0.81729801,4622.7,4622.2,3.519]
[1755098141895,0.19576313,4622.8,4622.2,3.519]
[1755098142092,0.19576313,4623.4,4622.2,3.519]
[1755098142321,0.22282772,4623.3,4622.2,3.519]
[1755098142520,0.60728108,4623.2,4622.2,3.519]
[1755098142721,0.22282889,4623.1,4622.2,3.519]
[1755098143225,5.32197999,4623.1,4622.3,3.519]
[1755098143434,0.19586195,4623.0,4622.3,3.519]
[1755098143606,2.02569319,4622.9,4622.3,3.5198]
[1755098143936,5.93336195,4622.8,4622.3,3.5198]
[1755098144103,6.41172656,4622.7,4622.3,0.0008]
[1755098144302,0.67422714,4622.6,4622.4,3.519]
[1755098144513,6.47538299,4622.5,4622.4,3.519]
[1755098144711,6.38468609,4622.5,4622.4,3.519]
[1755098144908,3.0,4622.4,4622.3,0.0008]
[1755098145110,3.94949564,4622.4,4622.3,3.5198]
[1755098145426,3.94949564,4622.4,4621.9,3.519]
[1755098145427,4.22800338,4622.4,4621.9,3.519]
[1755098145627,11.68306712,4622.0,4620.1,0.02]
[1755098145836,3.64755228,4621.9,4621.2,2.549]
[1755098146070,0.19599759,4621.8,4620.8,5.185]
[1755098146241,0.19599759,4621.7,4621.3,3.519]
[1755098146402,0.41781596,4621.8,4621.3,3.519]
[1755098146403,0.63709759,4621.6,4621.3,3.519]
[1755098146598,0.19599759,4621.5,4621.3,3.519]
[1755098146898,0.19599759,4621.5,4620.8,5.185]
[1755098146899,0.19599759,4621.4,4620.8,5.185]
[1755098147100,0.19628445,4621.3,4621.2,3.519]
[1755098147331,3.0,4621.2,4620.8,5.185]
[1755098147636,0.62950063,4621.2,4621.1,3.539]
[1755098147936,0.60245138,4621.2,4621.1,3.539]
[1755098148133,0.60245138,4621.2,4621.1,3.5398]
[1755098148338,0.35490322,4621.2,4621.1,3.5398]
[1755098149341,0.19628445,4621.2,4621.1,3.5398]
[1755098149844,0.30428445,4621.2,4621.1,3.5398]
[1755098150348,0.30445964,4621.2,4621.1,3.5398]
[1755098150847,0.30442211,4621.2,4621.1,3.5398]
[1755098151524,0.30442211,4621.2,4621.1,4.41228]
[1755098151845,0.19642211,4621.2,4621.1,4.69438]
[1755098152212,0.02703871,4623.0,4621.1,4.69438]
[1755098152412,1.46908042,4622.9,4621.2,0.469438]
[1755098152613,0.22367967,4622.8,4621.3,0.2821]
[1755098152812,0.19663979,4622.7,4621.3,0.2821]
[1755098153035,0.19663979,4622.6,4621.3,0.2821]
[1755098153230,0.22368143,4622.5,4621.1,0.0208]
[1755098153431,0.19662822,4622.4,4621.4,3.519]
[1755098153633,0.19662822,4622.3,4621.4,3.519]
[1755098153837,0.19662822,4622.2,4621.5,0.3519]
[1755098154041,0.19662822,4622.1,4621.5,0.3519]
[1755098154262,0.19662822,4622.0,4621.6,3.519]
[1755098154445,0.19662822,4621.9,4621.6,3.519]
[1755098154644,0.19662822,4621.8,4621.7,0.2821]
[1755098155556,0.19662822,4621.8,4621.7,3.8001]
[1755098155717,0.19662822,4621.8,4621.7,4.18019]
[1755098156113,0.19671934,4623.6,4621.7,4.18019]
[1755098156354,0.19671934,4623.5,4621.8,3.2821]
[1755098156540,0.19671934,4623.4,4621.9,0.718019]
[1755098156749,0.19671934,4623.3,4621.9,0.718019]
[1755098157060,0.21916318,4623.2,4621.4,0.0008]
[1755098157217,2.93421934,4623.1,4621.4,0.0008]
[1755098157433,3.22375805,4623.0,4621.5,3.518]
[1755098157635,0.83809101,4622.9,4621.5,3.518]
[1755098157863,0.83809101,4622.9,4621.4,0.0008]
[1755098157864,0.19671934,4622.8,4621.4,0.0008]
[1755098158068,0.22375981,4622.7,4621.5,3.518]
[1755098158272,0.19671934,4622.6,4621.5,3.518]
[1755098158448,0.19671934,4622.5,4621.5,3.518]
[1755098158647,0.19671934,4622.4,4621.5,3.518]
[1755098158875,0.19671934,4622.3,4621.5,3.518]
[1755098159086,0.19671934,4622.2,4621.5,3.5188]
[1755098159370,0.19671934,4622.1,4621.5,3.5188]
[1755098159574,0.19702327,4622.0,4621.5,3.5188]
[1755098159737,0.19702327,4621.9,4621.5,0.0008]
[1755098159935,12.24614639,4622.4,4621.5,0.0008]
[1755098159936,0.19702327,4621.8,4621.6,3.517]
[1755098160135,12.44317374,4621.7,4621.5,0.0008]
[1755098160340,0.19702735,4621.6,4621.5,0.0008]
[1755098160541,0.19702735,4621.6,4621.5,3.5178]
[1755098160965,0.19571581,4621.6,4621.5,5.186]
[1755098161548,3.91483456,4622.5,4621.5,5.186]
[1755098161763,0.68209007,4622.4,4621.5,5.186]
[1755098162238,0.108,4621.7,4621.5,5.186]
[1755098162442,0.108,4621.7,4621.6,3.517]
[1755098162975,2.8797,4621.7,4621.5,5.186]
[1755098163166,2.79874691,4621.6,4621.5,5.186]
[1755098163353,3.63024084,4621.6,4621.5,5.186]
[1755098163553,3.06237469,4621.6,4621.5,8.703]
[1755098163753,6.63159655,4621.6,4621.5,8.703]
[1755098163978,7.08587942,4621.6,4621.5,8.703]
[1755098164160,6.51666761,4621.6,4621.5,8.703]
[1755098164359,7.08576997,4621.6,4621.5,8.703]
[1755098164661,7.08576997,4621.6,4621.5,5.186]
[1755098164846,7.08576997,4621.6,4621.5,8.703]
[1755098165048,6.51666761,4621.6,4621.5,8.703]
[1755098165249,7.08572697,4621.6,4621.5,8.703]
[1755098165579,3.0,4621.5,4620.1,5.186]
[1755098165778,3.0,4620.4,4620.2,3.517]
[1755098166115,0.4335,4620.3,4620.2,3.517]
[1755098166250,2.8797,4620.3,4620.2,3.517]
[1755098166445,5.8797,4620.3,4620.2,3.517]
[1755098166653,6.46767,4620.3,4620.2,3.517]
[1755098167061,6.46767,4620.3,4618.8,0.003]
[1755098167062,3.0,4620.2,4618.8,0.003]
[1755098167261,15.24614639,4619.2,4618.8,0.003]
[1755098167460,3.34074629,4620.1,4619.7,0.001]
[1755098167677,15.24614639,4619.8,4619.7,0.001]
[1755098167878,16.3854572,4619.8,4619.7,3.518]
[1755098168084,19.1571572,4619.8,4619.7,0.001]
[1755098168247,19.1571572,4619.8,4619.7,3.5188]
[1755098168851,3.0,4619.7,4618.8,0.003]
[1755098169052,0.3177333,4619.6,4614.7,5.186]
[1755098169255,0.56660865,4618.1,4614.7,5.186]
[1755098169455,2.79876799,4618.0,4616.2,5.187]
[1755098169657,3.4335,4617.9,4616.3,5.187]
[1755098169851,12.24614639,4617.4,4616.0,5.187]
[1755098170154,0.46057209,4617.3,4616.1,5.187]
[1755098170495,5.3382,4617.2,4615.5,5.187]
[1755098170724,3.0,4616.8,4615.5,5.187]
[1755098170992,3.0,4616.6,4615.6,3.571]
[1755098171188,3.0,4615.8,4612.1,0.02]
[1755098171354,0.02708148,4615.7,4613.8,5.187]
[1755098171562,3.0,4615.5,4613.9,3.589]
[1755098171763,3.0,4615.3,4613.9,3.589]
[1755098171957,3.0,4615.3,4613.8,5.187]
[1755098172268,3.0,4615.3,4612.1,0.02]
[1755098172269,4.2017,4615.2,4612.1,0.02]
[1755098172486,0.027085,4615.1,4612.1,0.02]
[1755098172684,3.02,4615.4,4612.2,0.05671467]
[1755098172685,0.4228785,4615.0,4612.2,0.05671467]
[1755098172887,0.02,4615.4,4612.3,0.52327366]
[1755098173087,0.02,4615.4,4612.4,0.00471177]
[1755098173294,0.02,4615.4,4612.1,2.718]
[1755098173496,0.02708382,4615.3,4612.2,0.2718]
[1755098173697,0.02,4615.4,4613.5,5.189]
[1755098173918,0.02,4615.4,4613.6,3.77170412]
[1755098174213,0.02,4615.4,4613.7,3.0]
[1755098174376,0.02,4615.4,4611.2,1.68696836]
[1755098174377,0.02,4615.4,4614.4,5.189]
[1755098174874,11.72596038,4615.2,4614.4,5.189]
[1755098175078,3.0,4614.7,4612.1,0.02]
[1755098175319,11.72596038,4613.9,4612.2,3.546]
[1755098175520,2.99346831,4613.8,4612.2,3.546]
[1755098175811,3.0,4613.6,4612.2,3.546]
[1755098175983,2.79879439,4613.5,4612.2,3.546]
[1755098176316,3.0,4613.4,4612.3,3.863]
[1755098176621,5.3382,4614.1,4612.4,3.862]
[1755098176779,3.0,4614.1,4612.5,4.2492]
[1755098176982,0.02709146,4614.0,4612.1,0.021]
[1755098177174,0.02709146,4614.0,4612.6,3.87]
[1755098177379,2.3382,4615.3,4612.7,3.887]
[1755098177380,0.4335,4614.9,4612.7,3.887]
[1755098177600,0.108,4612.8,4612.6,0.387]
[1755098177880,0.108,4613.4,4612.8,3.887]
[1755098178091,0.02,4615.4,4612.9,0.00471931]
[1755098178316,0.02,4615.4,4612.9,3.00471931]
[1755098178644,0.108,4614.7,4613.9,0.108]
[1755098178786,0.02708793,4614.6,4613.0,5.192]
[1755098178984,0.01882024,4615.4,4613.0,5.192]
[1755098178985,0.108,4613.6,4613.1,4.4312]
[1755098179189,0.108,4613.6,4613.1,3.912]
[1755098179381,0.108,4613.6,4613.2,3.912]
[1755098179587,0.108,4613.8,4613.0,5.192]
[1755098179796,0.649615,4615.1,4613.4,3.0]
[1755098180079,0.01882024,4615.4,4613.7,3.0]
[1755098180316,0.01882024,4615.4,4613.8,0.00470285]
[1755098180517,0.01882024,4615.4,4615.2,5.192]
[1755098180721,0.01882024,4615.4,4615.3,5.378]
[1755098180886,0.01882024,4615.4,4615.3,4.44]
[1755098181098,0.01882024,4615.4,4615.3,1.44]
[1755098181483,0.01882024,4615.4,4615.3,3.936]
[1755098181698,0.01882024,4615.4,4611.1,2.18866749]
[1755098181941,2.79878382,4615.3,4611.8,5.192]
[1755098182086,11.7154676,4615.0,4612.2,3.95]
[1755098182284,5.99241765,4614.9,4612.2,3.95]
[1755098182503,3.0,4614.7,4612.2,3.95]
[1755098182830,0.4335,4614.6,4612.3,0.00471617]
[1755098182981,0.02708852,4614.5,4612.2,3.95]
[1755098183180,0.57717,4614.5,4612.2,0.00471735]
[1755098183386,2.3382,4614.8,4612.1,0.02571745]
[1755098183586,0.297991,4615.2,4612.9,2.16781902]
[1755098183796,0.01882024,4615.4,4613.1,3.0]
[1755098184106,0.01882024,4615.4,4613.2,1.44]
[1755098184303,0.01882024,4615.4,4614.0,5.192]
[1755098184624,0.01882024,4615.4,4614.1,4.48090093]
[1755098184804,0.01882024,4615.4,4615.3,2.16670638]
[1755098185133,0.01882024,4615.4,4615.3,6.12739912]
[1755098185332,0.02,4618.4,4615.3,6.12739912]
[1755098185333,0.02,4618.4,4616.3,11.73097902]
[1755098185546,0.02,4618.4,4616.5,5.193]
[1755098185837,0.02,4618.4,4616.6,3.966]
[1755098186036,0.02,4618.4,4616.7,0.00466828]
[1755098186191,0.02,4618.4,4616.5,5.193]
[1755098186393,0.02,4618.4,4616.6,3.97366892]
[1755098186694,0.02,4618.4,4617.0,11.73097902]
[1755098187398,0.02,4618.4,4617.2,3.0]
[1755098187590,0.02,4618.4,4618.2,2.16534106]
[1755098187791,0.02,4618.4,4618.3,6.975]
[1755098188022,0.02,4618.4,4618.3,3.975]
[1755098188223,0.0192,4618.4,4618.3,3.971]
[1755098188421,0.0192,4618.4,4618.3,3.9718]
[1755098188921,2.7909,4618.4,4618.3,0.0008]
[1755098189123,0.29829,4618.4,4618.3,3.9708]
[1755098189301,0.0192,4618.4,4618.3,3.9708]
[1755098189895,0.4913,4618.4,4618.3,3.9658]
[1755098190203,1.9425,4618.4,4618.3,3.9658]
[1755098190405,0.108,4618.5,4618.3,3.9658]
[1755098190807,0.022,4619.4,4618.4,3.964]
[1755098191915,0.022,4619.4,4618.3,0.0008]
[1755098192149,0.022,4619.4,4618.4,4.05]
[1755098192319,2.9059,4619.3,4618.4,0.09]
[1755098192519,3.79195096,4619.2,4618.5,3.961]
[1755098192752,2.9059,4619.1,4618.5,3.961]
[1755098193250,2.9059,4619.1,4618.6,3.959]
[1755098193652,0.31985096,4619.2,4618.6,3.9598]
[1755098193969,2.9059,4619.0,4618.7,5.19]
[1755098194137,0.04905979,4619.4,4618.7,5.28]
[1755098194467,0.022,4619.4,4618.7,5.28]
[1755098194622,0.022,4619.4,4618.6,3.9598]
[1755098194623,0.59279,4619.3,4618.8,5.19]
[1755098194825,3.49869,4619.3,4618.8,5.19]
[1755098195075,2.9059,4619.3,4618.9,3.948]
[1755098195355,0.022,4619.4,4618.9,3.948]
[1755098195722,0.022,4619.4,4619.0,3.946]
[1755098196152,0.022,4619.4,4619.1,3.943]
[1755098196423,0.02093793,4619.4,4619.1,3.943]
[1755098196643,0.02093793,4619.4,4619.2,2.8957]
[1755098197052,0.02093793,4619.4,4619.3,2.8957]
[1755098197383,0.002,4619.8,4619.7,2.16464272]
[1755098197534,0.002,4619.8,4619.7,2.16928387]
[1755098197728,0.002,4619.8,4619.7,8.06498387]
[1755098197926,0.002,4619.8,4619.7,8.06034272]
[1755098198246,0.002,4619.8,4619.7,12.00434272]
[1755098198424,0.02,4621.4,4619.8,5.16459586]